bitfinex/quotes_ETHUSD_20241120
["timestamp","ask_amount","ask_price","bid_price","bid_amount"]
[1732132230494,3.26769,3060.3,3059.6,3.26838]
[1732132230694,3.26776,3060.2,3059.5,3.2684]
[1732132230838,0.409879,3060.2,3059.4,0.817]
[1732132231042,3.26803,3060.0,3059.4,0.817]
[1732132232049,0.06022308,3059.9,3059.4,4.08561]
[1732132232390,0.06022308,3059.9,3059.4,0.817]
[1732132232683,0.06022308,3059.9,3059.5,3.26847]
[1732132233035,3.26781,3060.2,3059.5,3.26847]
[1732132233382,3.32857401,3060.1,3059.4,4.08552]
[1732132233592,3.26809,3059.9,3059.4,4.08552]
[1732132233881,0.06061314,3059.8,3059.4,0.817]
[1732132234034,3.2682,3059.8,3059.4,0.817]
[1732132234239,0.06059531,3059.7,3059.4,0.817]
[1732132234433,3.2682,3059.8,3059.4,0.817]
[1732132234679,3.32685864,3059.7,3059.4,0.817]
[1732132234888,3.26847,3059.6,3059.1,0.7852]
[1732132235182,3.26864,3059.4,3059.1,0.7852]
[1732132235387,3.26864,3059.4,3058.7,3.26936]
[1732132235388,3.26873,3059.3,3058.7,4.05456]
[1732132235544,3.32720202,3059.3,3058.7,4.05456]
[1732132235739,3.26883,3059.2,3058.7,4.05456]
[1732132236141,3.32733999,3059.1,3058.7,0.7852]
[1732132236982,0.05840999,3059.1,3058.8,3.26916]
[1732132237186,3.26866,3059.4,3058.8,0.405436]
[1732132237492,3.2681,3059.9,3059.4,3.26856]
[1732132237493,3.26808,3059.9,3059.4,3.26856]
[1732132237812,3.26788,3060.1,3059.6,0.8192]
[1732132237990,3.26814,3059.9,3059.6,0.8192]
[1732132238146,3.2679,3060.1,3059.6,0.8192]
[1732132238342,3.26813,3059.9,3059.3,3.26871]
[1732132238684,3.26814,3059.9,3059.3,3.26871]
[1732132239049,3.26819,3059.8,3059.3,3.26871]
[1732132239782,3.26819,3059.8,3059.2,0.8192]
[1732132240444,3.26814,3059.9,3059.2,0.8192]
[1732132240644,3.26814,3059.9,3059.2,4.08795]
[1732132240850,3.26791,3060.1,3059.3,3.30134215]
[1732132241062,3.2677,3060.3,3059.7,3.26828]
[1732132241268,3.2677,3060.3,3059.8,4.366568]
[1732132241472,3.2677,3060.3,3059.8,4.03974]
[1732132241682,3.2679,3060.1,3059.8,0.7716]
[1732132241885,3.26808,3059.9,3059.8,0.7716]
[1732132242186,3.26797,3060.0,3059.5,4.0701]
[1732132242593,3.26824,3059.8,3059.5,0.8016]
[1732132242946,6.5365,3059.8,3059.5,0.8016]
[1732132243370,3.26824,3059.8,3059.5,0.8016]
[1732132243952,3.26835,3059.7,3059.5,0.8016]
[1732132244689,3.26835,3059.7,3058.9,0.58268232]
[1732132244690,3.2684,3059.6,3059.1,0.8221]
[1732132245019,0.8306,3060.1,3058.8,0.8221]
[1732132245020,3.26872,3059.3,3058.8,0.8221]
[1732132245223,3.26884,3059.2,3058.9,0.10203595]
[1732132245525,3.26884,3059.2,3058.8,0.8221]
[1732132245526,0.0545279,3059.2,3059.0,0.10203595]
[1732132245705,0.0545279,3059.2,3058.8,4.12402776]
[1732132245907,2.99918547,3060.2,3058.9,0.10203335]
[1732132246110,2.99918547,3060.2,3059.0,0.10203335]
[1732132246111,0.05450163,3059.1,3059.0,0.10203335]
[1732132246296,3.26869,3059.4,3059.0,0.10203335]
[1732132246622,3.26813,3059.9,3058.8,0.8221]
[1732132246623,2.99918547,3059.9,3058.8,0.8221]
[1732132246827,0.8306,3059.5,3058.9,0.10203472]
[1732132247026,3.26877,3059.3,3058.8,0.85478905]
[1732132247181,3.26877,3059.3,3058.9,0.10203733]
[1732132247383,3.26877,3059.3,3059.0,0.10203753]
[1732132247594,6.53758,3059.3,3058.8,0.8221]
[1732132247876,3.26877,3059.3,3058.9,0.1020338]
[1732132248024,3.26877,3059.3,3059.0,0.1020338]
[1732132248230,3.26886,3059.2,3058.8,0.8221]
[1732132248538,3.01,3060.1,3058.9,0.10203466]
[1732132248539,0.7512,3059.9,3058.9,0.10203466]
[1732132248685,3.26835,3059.7,3059.2,3.26882]
[1732132249029,3.26835,3059.7,3059.0,3.37101466]
[1732132249030,3.2684,3059.6,3059.3,0.10203466]
[1732132249328,3.2684,3059.6,3059.1,3.60929025]
[1732132249484,3.26842,3059.6,3059.2,0.78985149]
[1732132249834,3.26842,3059.6,3059.3,0.10202446]
[1732132250128,6.53692,3059.6,3059.4,0.10202446]
[1732132250367,6.53692,3059.6,3059.0,3.26898]
[1732132250368,3.2685,3059.5,3059.0,3.26898]
[1732132250629,3.26853,3059.5,3059.1,0.10202547]
[1732132250923,3.2684,3059.6,3059.2,0.10202547]
[1732132251086,3.26854,3059.5,3059.3,0.10202547]
[1732132251285,3.26778,3060.2,3059.4,0.93092547]
[1732132251523,3.26789,3060.1,3059.5,0.10202547]
[1732132251728,3.26778,3060.2,3059.6,0.10202547]
[1732132251883,3.26797,3060.0,3059.7,0.10202547]
[1732132252083,3.26797,3060.0,3059.4,4.09742]
[1732132252329,3.8138,3060.4,3059.4,0.8289]
[1732132252330,3.26765,3060.3,3059.4,0.8289]
[1732132252513,3.26813,3059.9,3059.5,0.13469383]
[1732132252701,3.26813,3059.9,3059.6,0.10201228]
[1732132252888,3.26819,3059.8,3059.4,0.8289]
[1732132253088,3.26819,3059.8,3059.5,0.10201323]
[1732132253284,3.26819,3059.8,3059.6,0.10201323]
[1732132253491,3.26819,3059.8,3059.4,0.8289]
[1732132253492,3.26793,3060.1,3059.7,0.10201323]
[1732132253718,3.26793,3060.1,3059.8,0.10200999]
[1732132253910,3.2679,3060.1,3059.5,3.68146815]
[1732132254243,3.8138,3060.4,3059.6,0.10200865]
[1732132254244,3.26819,3059.8,3059.6,0.10200865]
[1732132254391,3.26819,3059.8,3059.4,0.8289]
[1732132254392,3.26829,3059.7,3059.4,0.8289]
[1732132254593,3.26829,3059.7,3059.5,0.10201231]
[1732132254803,3.26829,3059.7,3059.6,0.10201231]
[1732132254804,4.737138,3059.7,3059.6,0.10201231]
[1732132255139,3.2688,3059.3,3058.9,0.7773]
[1732132255303,3.2688,3059.3,3059.0,0.10203121]
[1732132255503,3.2688,3059.3,3059.1,0.10203121]
[1732132255718,3.2688,3059.3,3059.2,0.10203121]
[1732132256450,3.26844,3059.6,3059.2,0.10203121]
[1732132256586,3.26844,3059.6,3059.3,0.10203121]
[1732132256793,3.26854,3059.5,3058.9,4.04636]
[1732132257003,3.26862,3059.4,3059.0,0.10202394]
[1732132257220,3.26862,3059.4,3058.9,4.777926]
[1732132257221,3.26862,3059.4,3059.1,0.10202394]
[1732132257441,3.26844,3059.6,3059.2,0.10202394]
[1732132257746,3.26844,3059.6,3059.3,0.10202394]
[1732132257889,3.26844,3059.6,3059.4,0.10202394]
[1732132258090,3.26844,3059.6,3059.5,0.10202394]
[1732132258347,3.26844,3059.6,3059.2,0.3756855]
[1732132258496,3.26823,3059.8,3059.3,0.10202071]
[1732132258497,3.26827,3059.8,3059.3,0.10202071]
[1732132258835,3.26845,3059.6,3059.4,0.10202071]
[1732132259006,6.53692,3059.6,3059.1,0.48799499]
[1732132259215,3.2685,3059.5,3059.2,0.47772387]
[1732132259553,3.26861,3059.4,3059.3,0.10202137]
[1732132260006,4.744222,3059.4,3059.3,0.10202137]
[1732132260207,3.26925,3058.8,3058.6,0.81]
[1732132260411,3.26925,3058.8,3058.7,0.10204577]
[1732132260603,3.26948,3058.6,3058.2,0.81]
[1732132260923,3.26962,3058.5,3058.3,0.10205207]
[1732132261132,3.26962,3058.5,3058.2,0.81]
[1732132261133,3.26931,3058.8,3058.4,0.10205207]
[1732132261336,3.26931,3058.8,3058.5,0.10205207]
[1732132261337,3.26946,3058.6,3058.5,0.10205207]
[1732132261834,3.26946,3058.6,3058.2,0.81]
[1732132261835,3.26968,3058.4,3058.2,0.81]
[1732132262062,3.26968,3058.4,3058.3,0.1020537]
[1732132262330,3.27001,3058.1,3057.9,0.7896]
[1732132262645,3.27008,3058.1,3058.0,0.10206503]
[1732132263039,3.27011,3058.0,3057.9,0.7896]
[1732132263386,3.27011,3058.0,3057.2,3.00918547]
[1732132263387,3.27053,3057.6,3057.1,1.1093608]
[1732132263592,3.27053,3057.6,3057.2,0.10207777]
[1732132263885,3.27053,3057.6,3057.3,0.10207777]
[1732132264042,3.27053,3057.6,3057.1,0.52213249]
[1732132264238,0.654019,3058.0,3057.2,0.10208698]
[1732132264466,3.27059,3057.6,3057.0,4.07919]
[1732132264784,4.08302,3058.1,3057.1,3.37314647]
[1732132264785,0.813,3058.1,3057.1,3.37314647]
[1732132264986,3.27049,3057.7,3057.2,0.10208647]
[1732132265135,0.813,3058.1,3057.0,1.216019]
[1732132265486,3.27071,3057.5,3057.1,0.10208601]
[1732132265652,0.813,3058.1,3057.1,3.7299325]
[1732132265857,3.27027,3057.9,3057.3,3.27084]
[1732132266489,3.26911,3059.0,3058.0,0.55]
[1732132266705,4.05692,3059.3,3058.6,3.26938]
[1732132266849,4.05692,3059.3,3058.5,4.0225]
[1732132266850,3.269,3059.1,3058.5,4.0225]
[1732132267045,3.269,3059.1,3058.5,7.292]
[1732132267251,3.269,3059.1,3058.5,4.42475]
[1732132267656,3.26872,3059.3,3058.5,1.18793946]
[1732132267856,3.26872,3059.3,3058.7,3.26929]
[1732132268180,3.26872,3059.3,3058.6,3.2694]
[1732132268361,3.26888,3059.2,3058.6,3.2694]
[1732132268564,3.26895,3059.1,3058.5,4.02257]
[1732132268904,3.26895,3059.1,3058.6,0.40552581]
[1732132269194,3.26895,3059.1,3058.6,3.67497581]
[1732132269391,3.26895,3059.1,3058.6,0.40552581]
[1732132269600,0.04899721,3059.0,3058.6,3.67498581]
[1732132269759,0.04899721,3059.0,3058.7,0.76974958]
[1732132269953,3.26883,3059.2,3058.7,0.76974958]
[1732132270150,0.04897357,3058.9,3058.7,0.76974958]
[1732132270364,3.26896,3059.1,3058.7,0.76974958]
[1732132270575,3.26896,3059.1,3058.8,0.40392096]
[1732132270865,3.26922,3058.9,3058.5,0.753]
[1732132271069,3.2694,3058.7,3058.5,0.753]
[1732132271300,3.26947,3058.6,3058.2,3.7596]
[1732132271496,3.26947,3058.6,3058.3,0.745985]
[1732132271668,3.26958,3058.5,3058.2,0.7596]
[1732132271874,3.26979,3058.3,3058.2,0.7596]
[1732132272082,3.68857133,3058.9,3057.8,0.7807]
[1732132272390,3.27044,3057.7,3057.5,0.7807]
[1732132272957,3.27027,3057.9,3056.7,3.69857133]
[1732132272958,3.27027,3057.9,3057.1,0.7807]
[1732132273152,3.26989,3058.2,3057.2,0.03270383]
[1732132273397,3.26989,3058.2,3057.4,3.27073]
[1732132273564,3.26984,3058.3,3057.7,3.27036]
[1732132273766,3.26984,3058.3,3057.8,3.3029878]
[1732132274082,3.26977,3058.4,3057.9,3.27021]
[1732132274479,4.04852,3058.6,3057.9,3.27018]
[1732132275040,3.26996,3058.2,3057.6,3.27047]
[1732132275181,3.26974,3058.4,3057.7,3.27035]
[1732132275676,6.5395,3058.4,3057.8,3.27025]
[1732132275876,3.2698,3058.3,3057.7,3.27035]
[1732132276077,3.26997,3058.2,3057.7,3.71923723]
[1732132276282,3.26997,3058.2,3057.7,0.44888723]
[1732132276523,3.27014,3058.0,3057.7,0.44888723]
[1732132276820,0.04882132,3058.1,3057.7,0.44888723]
[1732132277024,0.04877401,3057.9,3057.7,0.44888723]
[1732132277223,3.26973,3058.4,3057.8,3.27026]
[1732132277519,3.26931,3058.8,3058.2,3.26989]
[1732132277735,3.26931,3058.8,3058.3,3.62939163]
[1732132277875,3.26931,3058.8,3058.3,0.326989]
[1732132277876,3.26936,3058.7,3058.3,0.326989]
[1732132278634,3.26957,3058.6,3058.1,0.7796]
[1732132278837,3.2697,3058.4,3058.1,0.7796]
[1732132279924,3.2697,3058.4,3057.1,3.69857133]
[1732132279925,3.27017,3058.0,3057.3,0.7796]
[1732132280228,3.27038,3057.8,3057.3,4.05044]
[1732132280427,3.26985,3058.3,3057.7,3.27042]
[1732132280725,3.26985,3058.3,3057.8,4.04989]
[1732132281026,3.26962,3058.5,3057.8,4.04989]
[1732132281181,3.26975,3058.4,3057.8,4.454879]
[1732132281387,3.2698,3058.3,3057.8,1.184589]
[1732132281611,3.2699,3058.2,3057.8,1.184589]
[1732132281855,3.26926,3058.8,3058.4,0.7796]
[1732132282015,3.26882,3059.2,3058.4,0.7796]
[1732132282218,3.26928,3058.8,3058.4,0.7796]
[1732132282445,3.26905,3059.0,3058.4,4.04918]
[1732132282720,3.26905,3059.0,3058.4,0.7796]
[1732132283027,3.26854,3059.5,3058.8,0.7796]
[1732132283028,3.26853,3059.5,3058.8,0.7796]
[1732132283229,3.26878,3059.3,3058.8,0.7796]
[1732132283454,3.26874,3059.3,3058.8,0.7796]
[1732132284115,3.26874,3059.3,3058.8,4.04878]
[1732132285567,3.26863,3059.4,3058.8,4.04878]
[1732132285747,0.7595,3059.6,3058.9,0.03268803]
[1732132285929,3.26872,3059.3,3058.8,4.04885]
[1732132286330,3.26852,3059.5,3058.9,3.26911]
[1732132286652,6.53712,3059.5,3058.9,3.26911]
[1732132286868,3.26872,3059.3,3058.8,1.184485]
[1732132287014,3.26872,3059.3,3058.8,0.7796]
[1732132287219,3.26893,3059.1,3058.8,0.7796]
[1732132287623,0.04593697,3059.0,3058.8,0.7796]
[1732132288231,0.04593697,3059.0,3058.2,3.26987]
[1732132288232,3.26938,3058.7,3058.2,3.26987]
[1732132288431,6.53848,3058.9,3058.2,7.34117]
[1732132288749,3.26923,3058.9,3058.2,5.025297]
[1732132288915,0.04588969,3058.8,3058.3,3.26977]
[1732132289118,0.04588969,3058.8,3058.3,4.10254588]
[1732132289951,0.04588969,3058.8,3058.3,0.83277588]
[1732132290166,0.04588969,3058.8,3058.4,6.53929]
[1732132290372,3.26907,3059.0,3058.5,3.26956]
[1732132290671,0.04586605,3058.7,3058.4,3.26967]
[1732132290868,3.26907,3059.0,3058.4,3.26967]
[1732132291172,3.26974,3058.4,3057.8,4.07176]
[1732132291318,3.2699,3058.2,3057.8,0.8015]
[1732132291514,3.2699,3058.2,3057.8,1.208694]
[1732132291515,0.04453628,3058.1,3057.8,1.208694]
[1732132292217,3.26974,3058.4,3057.9,3.27019]
[1732132292659,0.04458358,3058.3,3058.0,0.55]
[1732132292922,0.04458358,3058.3,3058.0,3.8201]
[1732132293226,3.26976,3058.4,3057.9,0.55]
[1732132293420,3.26976,3058.4,3057.9,3.82019]
[1732132293621,0.04458358,3058.3,3058.0,3.27001]
[1732132293858,0.04458358,3058.3,3057.9,0.55]
[1732132293859,0.04458358,3058.3,3058.2,3.81989]
[1732132294031,3.26937,3058.7,3058.3,0.55]
[1732132294360,3.26916,3058.9,3058.3,4.281889]
[1732132294721,0.7535,3059.2,3058.3,4.281889]
[1732132294925,3.26921,3058.9,3058.3,4.281889]
[1732132295275,3.26899,3059.1,3058.6,0.8012]
[1732132295633,3.26918,3058.9,3058.6,0.8012]
[1732132296263,6.53842,3058.9,3058.6,0.8012]
[1732132296433,3.26918,3058.9,3058.6,0.8012]
[1732132298026,3.26895,3059.1,3058.6,0.8012]
[1732132298465,3.26884,3059.2,3058.6,1.208271]
[1732132298680,3.26867,3059.4,3058.7,3.81926]
[1732132298972,3.26904,3059.0,3058.7,0.55]
[1732132299123,3.26909,3059.0,3058.6,0.8012]
[1732132299619,3.26866,3059.4,3058.7,3.26929]
[1732132299837,3.26866,3059.4,3058.8,3.26924]
[1732132300036,3.26893,3059.1,3058.7,0.55]
[1732132300264,0.7741,3059.4,3058.6,0.8012]
[1732132300515,3.26913,3059.0,3058.6,0.8012]
[1732132301368,3.26917,3058.9,3058.6,0.8012]
[1732132301664,3.26886,3059.2,3058.7,3.26933]
[1732132301854,3.26904,3059.0,3058.6,0.8012]
[1732132302053,3.26886,3059.2,3058.6,0.8012]
[1732132302054,3.26886,3059.2,3058.7,0.55]
[1732132302670,3.26886,3059.2,3058.7,3.81935]
[1732132302837,3.26895,3059.1,3058.7,0.55]
[1732132303037,3.26847,3059.6,3059.0,3.26898]
[1732132303245,3.26822,3059.8,3059.3,3.26867]
[1732132303446,3.26822,3059.8,3059.4,0.326867]
[1732132303751,3.26809,3059.9,3059.3,6.53736]
[1732132303935,3.26809,3059.9,3059.3,4.32954]
[1732132304143,3.26819,3059.8,3059.3,4.32954]
[1732132304883,3.26819,3059.8,3059.2,0.55]
[1732132305099,3.26842,3059.6,3059.2,0.55]
[1732132305242,3.26819,3059.8,3059.2,3.81881]
[1732132305588,3.2683,3059.7,3059.2,3.81881]
[1732132305752,3.2683,3059.7,3059.2,4.280961]
[1732132305952,3.2684,3059.6,3059.2,1.012151]
[1732132306257,3.0,3060.0,3059.2,0.55]
[1732132306258,6.53653,3059.8,3059.2,0.55]
[1732132306473,3.26831,3059.7,3059.2,0.55]
[1732132306779,3.26846,3059.6,3059.2,0.55]
[1732132307385,3.26846,3059.6,3058.7,3.26934]
[1732132307386,3.26879,3059.3,3058.7,3.26934]
[1732132307542,3.26879,3059.3,3058.7,3.75295739]
[1732132307889,0.04149548,3059.2,3058.7,3.26934]
[1732132308045,0.04149548,3059.2,3058.7,4.00082]
[1732132308479,0.04149548,3059.2,3058.7,0.73148]
[1732132308683,3.31037548,3059.2,3058.8,0.55]
[1732132308886,3.26888,3059.2,3058.8,0.55]
[1732132309043,3.26904,3059.0,3058.6,0.55]
[1732132309243,3.26917,3058.9,3058.5,1.2572322]
[1732132309558,3.31059457,3058.9,3058.5,0.7761]
[1732132310391,3.26927,3058.8,3058.5,0.7761]
[1732132310588,0.04140093,3058.8,3058.5,0.7761]
[1732132311659,6.53815,3059.0,3058.5,1.2576438]
[1732132311869,0.04137728,3058.7,3058.5,0.7761]
[1732132312067,3.26917,3058.9,3058.5,1.2576438]
[1732132312367,3.26917,3058.9,3058.5,1.22882538]
[1732132312565,0.04140093,3058.8,3058.6,0.55]
[1732132312774,3.26892,3059.2,3058.7,3.30201864]
[1732132312966,3.26892,3059.2,3058.7,3.26933]
[1732132313882,3.26846,3059.6,3059.1,4.08683]
[1732132314196,3.26857,3059.5,3059.1,0.8179]
[1732132314763,3.2687,3059.4,3059.1,0.8179]
[1732132317296,3.26872,3059.3,3059.1,0.8179]
[1732132317600,3.26882,3059.2,3058.8,0.55]
[1732132319611,3.26882,3059.2,3058.7,0.7634]
[1732132319813,3.26882,3059.2,3058.8,0.10203021]
[1732132320097,3.26882,3059.2,3058.7,0.7634]
[1732132320309,3.26911,3059.0,3058.7,0.7634]
[1732132320504,0.7727,3059.2,3058.7,0.7634]
[1732132320505,3.269,3059.1,3058.7,0.7634]
[1732132320662,6.53822,3059.0,3058.7,0.7634]
[1732132320977,3.26935,3058.8,3058.3,0.8265]
[1732132321161,0.7727,3059.2,3058.0,0.85919275]
[1732132321162,3.26959,3058.5,3058.0,0.85919275]
[1732132321367,3.26952,3058.6,3058.0,0.8265]
[1732132321593,0.04134219,3058.5,3058.0,4.09654]
[1732132321794,3.26969,3058.4,3058.0,1.563182]
[1732132322023,3.31092219,3058.5,3058.0,0.8265]
[1732132322024,3.26997,3058.2,3058.0,0.8265]
[1732132322312,3.27006,3058.1,3057.7,0.8265]
[1732132322662,3.27027,3057.9,3057.4,3.27073]
[1732132322863,3.27027,3057.9,3057.2,3.27093]
[1732132322864,0.04122394,3058.0,3057.5,0.89197444]
[1732132323059,0.04122394,3058.0,3057.0,2.99741084]
[1732132323060,3.27046,3057.7,3057.1,3.30376215]
[1732132323308,3.27046,3057.7,3057.2,0.89197879]
[1732132323521,0.04112931,3057.6,3057.3,0.10207879]
[1732132323719,0.04112931,3057.6,3057.3,3.37291879]
[1732132324015,3.27005,3058.1,3057.5,4.06054]
[1732132324016,3.2701,3058.1,3057.5,4.06054]
[1732132324163,3.26992,3058.2,3057.5,0.7899]
[1732132324363,3.26992,3058.2,3057.6,3.82045]
[1732132324598,3.27004,3058.1,3057.6,3.82045]
[1732132324973,3.26992,3058.2,3057.6,0.55]
[1732132325173,3.27011,3058.0,3057.6,0.55]
[1732132325394,3.27023,3057.9,3057.6,0.55]
[1732132325605,0.327023,3057.9,3056.4,0.01]
[1732132325821,3.27082,3057.4,3056.7,0.7899]
[1732132326127,3.27086,3057.3,3056.8,0.10209085]
[1732132326288,3.27067,3057.5,3056.9,3.68754909]
[1732132326631,3.27037,3057.8,3057.1,0.7528]
[1732132326783,3.27037,3057.8,3057.1,4.02379]
[1732132327291,3.27043,3057.7,3057.2,3.82092]
[1732132327508,3.27021,3057.9,3057.2,4.94195757]
[1732132327720,0.8062,3058.0,3057.2,1.67109757]
[1732132327928,3.27033,3057.8,3057.3,3.27079]
[1732132328089,3.27049,3057.7,3057.2,0.55]
[1732132328424,3.26989,3058.2,3057.0,0.36875491]
[1732132328629,3.27076,3057.4,3056.8,3.27132]
[1732132328811,3.27076,3057.4,3056.6,3.8618199]
[1732132328812,3.27116,3057.1,3056.6,0.8317]
[1732132329018,3.27091,3057.3,3056.6,1.21888199]
[1732132329212,3.27113,3057.1,3056.6,0.8317]
[1732132329410,4.08467,3057.5,3056.6,0.8317]
[1732132329411,3.27143,3056.8,3056.6,0.8317]
[1732132329613,0.814,3057.5,3056.6,0.8317]
[1732132329787,3.2714,3056.8,3056.6,0.8317]
[1732132330803,3.2715,3056.7,3056.3,0.8231]
[1732132331013,3.2714,3056.8,3056.3,0.8231]
[1732132332039,6.54287,3056.8,3056.3,0.8231]
[1732132332205,3.2715,3056.7,3056.3,0.8231]
[1732132332411,3.2714,3056.8,3056.3,0.8231]
[1732132333138,6.54288,3056.8,3056.3,0.8231]
[1732132333444,3.2714,3056.8,3056.3,4.09499]
[1732132333935,3.27145,3056.8,3056.3,0.8231]
[1732132334429,3.27102,3057.2,3056.5,0.55]
[1732132334659,3.2711,3057.1,3056.6,3.27159]
[1732132334793,3.27041,3057.8,3057.1,3.27106]
[1732132335001,3.27061,3057.6,3057.2,0.55]
[1732132335395,3.27037,3057.8,3057.2,3.82096]
[1732132335595,3.27037,3057.8,3057.2,0.55]
[1732132335823,3.27055,3057.6,3057.0,0.7797]
[1732132336223,3.27081,3057.4,3057.0,0.7797]
[1732132336540,3.27081,3057.4,3056.8,3.82137]
[1732132336738,0.03950482,3057.3,3056.8,3.82137]
[1732132337039,3.31039482,3057.3,3056.8,3.82137]
[1732132337410,0.3705443,3057.3,3056.7,0.8097]
[1732132337614,3.27128,3056.9,3056.4,0.8097]
[1732132337942,3.27128,3056.9,3056.4,4.08144]
[1732132338182,0.03938648,3056.8,3056.4,4.08144]
[1732132338552,3.27119,3057.0,3056.4,4.08144]
[1732132338870,0.03941015,3056.9,3056.5,3.27171]
[1732132339378,0.03941015,3056.9,3056.4,0.8097]
[1732132339590,3.27084,3057.4,3056.6,3.27153]
[1732132339733,3.27084,3057.4,3056.7,0.03271171]
[1732132339734,3.27089,3057.3,3056.7,0.03271171]
[1732132340084,3.27107,3057.1,3056.6,3.27153]
[1732132340680,0.03943382,3057.0,3056.6,4.04490311]
[1732132341053,3.27107,3057.1,3056.6,4.04490311]
[1732132341235,0.03941015,3056.9,3056.6,4.04490311]
[1732132341438,3.27089,3057.3,3056.8,3.27139]
[1732132341439,0.03943382,3057.0,3056.8,3.27139]
[1732132341642,3.27089,3057.3,3056.8,3.27139]
[1732132341959,3.27089,3057.3,3056.8,3.27135]
[1732132342345,3.27089,3057.3,3056.8,6.54268]
[1732132342658,3.27071,3057.5,3057.0,3.27117]
[1732132342965,3.27075,3057.4,3056.9,3.27127]
[1732132343176,0.7914,3057.6,3057.1,3.27101]
[1732132343365,0.7754,3057.9,3057.1,3.27101]
[1732132343564,3.27032,3057.8,3057.0,0.8159]
[1732132343773,3.27032,3057.8,3057.3,3.27082]
[1732132344083,3.27056,3057.6,3057.0,4.087]
[1732132344379,3.27076,3057.4,3057.0,0.8159]
[1732132344674,4.04565,3057.9,3056.8,3.2713]
[1732132344875,4.04565,3057.9,3056.8,3.27136]
[1732132344876,3.27032,3057.8,3056.8,3.27136]
[1732132345079,3.27066,3057.5,3056.8,3.27136]
[1732132345781,3.27053,3057.6,3057.1,3.27103]
[1732132345940,7.31597,3057.9,3057.1,3.27101]
[1732132346142,4.777257,3057.9,3057.3,3.27082]
[1732132346466,4.777257,3057.9,3057.3,4.07589]
[1732132346467,3.27034,3057.8,3057.3,4.07589]
[1732132346958,0.7754,3057.9,3057.3,4.07593]
[1732132347169,0.88302846,3058.7,3057.3,4.07593]
[1732132347170,3.26979,3058.3,3057.7,3.27037]
[1732132347336,3.2699,3058.2,3057.4,3.40499984]
[1732132347533,3.26991,3058.2,3057.6,3.27043]
[1732132347764,3.26991,3058.2,3057.6,6.54091]
[1732132347983,3.27003,3058.1,3057.6,3.27043]
[1732132348286,0.7691,3058.5,3058.0,3.27009]
[1732132348497,0.7691,3058.5,3058.1,3.26998]
[1732132348833,0.7691,3058.5,3058.0,3.27009]
[1732132349054,0.7691,3058.5,3057.8,4.04016]
[1732132349260,0.7691,3058.5,3058.0,3.27009]
[1732132349685,4.03842,3058.8,3058.0,3.27009]
[1732132349841,4.03842,3058.8,3058.1,3.26996]
[1732132349842,3.26948,3058.6,3058.1,3.26996]
[1732132350042,3.2695,3058.6,3058.0,6.54012]
[1732132350337,7.30777,3058.8,3058.2,3.26985]
[1732132350542,3.26937,3058.7,3058.2,3.26985]
[1732132350757,3.26937,3058.7,3058.0,3.27002]
[1732132350936,0.7691,3058.8,3058.3,3.26968]
[1732132351152,3.26916,3058.9,3058.4,4.06639]
[1732132351353,6.53797,3059.1,3058.5,3.26951]
[1732132351596,6.53797,3059.1,3058.5,6.53901]
[1732132351597,3.26896,3059.1,3058.5,6.53901]
[1732132351885,3.30776624,3059.0,3058.4,4.06647]
[1732132352198,0.03868624,3059.0,3058.5,3.26957]
[1732132352486,0.8328,3059.2,3058.7,3.26929]
[1732132352694,0.0386626,3058.9,3058.7,3.26929]
[1732132352853,4.10165,3059.2,3058.6,3.2694]
[1732132353179,0.03863896,3058.8,3058.6,3.2694]
[1732132353389,3.26893,3059.1,3058.6,3.2694]
[1732132353851,0.03868624,3059.0,3058.6,3.2694]
[1732132354049,0.03868624,3059.0,3058.8,3.26925]
[1732132354263,3.26863,3059.4,3058.6,4.002993]
[1732132354459,0.03749927,3058.9,3058.8,3.26918]
[1732132354789,4.037,3059.5,3059.0,3.26897]
[1732132354790,0.7685,3059.5,3059.0,3.26897]
[1732132355140,4.03701,3059.5,3059.0,3.26897]
[1732132355368,0.7685,3059.5,3059.1,3.26884]
[1732132355550,4.03668,3059.8,3059.2,3.26875]
[1732132355772,3.26831,3059.7,3059.1,4.06594]
[1732132356174,3.26847,3059.6,3059.1,0.7971]
[1732132356843,3.26851,3059.5,3059.1,0.7971]
[1732132357044,0.653682,3059.5,3058.5,3.26948]
[1732132357252,3.2691,3059.0,3058.6,0.7971]
[1732132357590,0.730659,3059.0,3058.7,3.26935]
[1732132357799,0.7685,3059.2,3058.6,4.0665]
[1732132357950,3.26856,3059.5,3058.6,4.0665]
[1732132357951,3.26867,3059.4,3058.6,4.47315]
[1732132358158,3.26878,3059.3,3058.7,3.26934]
[1732132358957,3.26821,3059.8,3058.6,4.0665]
[1732132358958,3.26833,3059.7,3059.1,3.26893]
[1732132359185,4.003663,3059.7,3059.2,0.7725]
[1732132359496,3.26833,3059.7,3059.2,0.7725]
[1732132359792,0.8169,3060.1,3059.2,0.7725]
[1732132360095,0.8169,3060.1,3059.2,4.04131]
[1732132360096,3.26835,3059.7,3059.2,4.04131]
[1732132360300,6.53674,3059.7,3059.2,0.7725]
[1732132360633,6.53628,3059.9,3059.2,4.04126]
[1732132360801,3.26818,3059.8,3059.2,0.7725]
[1732132360953,3.2684,3059.7,3059.2,0.7725]
[1732132361151,3.26818,3059.8,3059.2,4.04132]
[1732132362053,3.2682,3059.8,3059.2,1.503516]
[1732132362351,6.53648,3059.8,3059.2,1.503516]
[1732132362961,6.53649,3059.8,3059.2,4.772336]
[1732132363292,3.26838,3059.7,3059.2,0.7725]
[1732132363991,0.8169,3060.1,3059.2,0.7725]
[1732132364198,5.99741084,3060.3,3058.6,0.7888]